fUSD/lending_fUSD_20241117
["ID","MTS","AMOUNT","RATE_DAILY","PERIOD"]
[342421007,1731844233064,-4366.65,0.0001,2]
[342421008,1731844233075,-524.7693386,0.0001,2]
[342421011,1731844239960,-6445.45635,0.0001,2]
[342421012,1731844240092,-5301.37095855,0.0001,2]
[342421013,1731844240103,-1977.802948,0.0001,2]
[342421027,1731844243525,-150.0,9.999e-05,2]
[342421028,1731844243537,-28928.32458242,0.0001,2]
[342421029,1731844243548,-1861.40227395,0.0001,2]
[342421030,1731844243577,-2500.0,9.9e-05,2]
[342421031,1731844243586,-488.4530479,0.0001,2]
[342421032,1731844243598,-2689.64672796,0.0001,2]
[342421033,1731844243609,-5975.23611703,0.0001,2]
[342421034,1731844243620,-4380.93923905,0.0001,2]
[342421035,1731844243631,-3167.63398446,0.0001,2]
[342421036,1731844243642,-2642.06667149,0.0001,2]
[342421048,1731844245955,-780.724635,0.0001,2]
[342421051,1731844245967,-887.88455759,0.0001,2]
[342421056,1731844246208,-959.9654118,0.0001,2]
[342421057,1731844246342,-94063.63635496,0.0001,2]
[342421059,1731844346646,2245.8,8.219e-05,2]
[342421060,1731844402414,-11557.0,0.000112,5]
[342421062,1731844430000,11557.0,0.000112,5]
[342421064,1731844461521,11557.0,0.000112,5]
[342421066,1731844493846,11557.0,0.000112,5]
[342421067,1731844525385,3772.0,0.000112,5]
[342421068,1731844563170,249.85483888,0.00023,120]
[342421069,1731844588817,-11557.0,0.000112,5]
[342421070,1731844619385,11557.0,0.000112,5]
[342421071,1731844660434,2003.62,0.000112,5]
[342421072,1731844986808,258.29,8.512e-05,2]
[342421073,1731845061978,2530.89,8.219e-05,2]
[342421074,1731845103842,250.0,8.453e-05,2]
[342421075,1731845162976,1852.42,8.414e-05,2]
[342421076,1731845253873,23900.0,8.456e-05,2]
[342421077,1731845307003,500.0,8.537e-05,2]
[342421078,1731845341349,250.0,8.418e-05,2]
[342421082,1731845423398,392.5,8.439e-05,2]
[342421092,1731845432060,-242.23,8.987e-05,2]
[342421093,1731845432070,-300.0,8.988e-05,2]
[342421094,1731845432079,-864.97629173,8.989e-05,2]
[342421095,1731845432088,-4199.78793906,8.989e-05,2]
[342421096,1731845432098,-242.23,8.989e-05,2]
[342421097,1731845432109,-242.23,8.992e-05,2]
[342421098,1731845432118,-242.23,8.994e-05,2]
[342421099,1731845432127,-250.0,8.996e-05,2]
[342421100,1731845432136,-242.23,8.996e-05,2]
[342421101,1731845432147,-242.23,8.999e-05,2]
[342421102,1731845432157,-242.23,9.001e-05,2]
[342421103,1731845432167,-242.23,9.003e-05,2]
[342421104,1731845432177,-242.23,9.006e-05,2]
[342421105,1731845432188,-242.23,9.008e-05,2]
[342421106,1731845432198,-1000.0,9.01e-05,2]
[342421107,1731845432207,-242.23,9.01e-05,2]
[342421108,1731845432217,-242.23,9.013e-05,2]
[342421109,1731845432227,-242.23,9.015e-05,2]
[342421110,1731845432236,-242.23,9.017e-05,2]
[342421111,1731845432245,-242.23,9.02e-05,2]
[342421112,1731845432254,-242.23,9.022e-05,2]
[342421113,1731845432263,-242.23,9.025e-05,2]
[342421114,1731845432273,-242.23,9.027e-05,2]
[342421115,1731845432282,-242.23,9.029e-05,2]
[342421116,1731845432292,-242.23,9.032e-05,2]
[342421117,1731845432302,-864.97629172,9.234e-05,2]
[342421118,1731845432313,-150.0,9.234e-05,2]
[342421119,1731845432323,-166.87,9.289e-05,2]
[342421120,1731845432334,-1494.21,9.441e-05,2]
[342421121,1731845432346,-864.97629172,9.478e-05,2]
[342421122,1731845432358,-362.28,9.478e-05,2]
[342421123,1731845432368,-210.28,9.498e-05,2]
[342421124,1731845432377,-258.29,9.576e-05,2]
[342421125,1731845432387,-433.3,9.578e-05,2]
[342421126,1731845432396,-150.57,9.578e-05,2]
[342421127,1731845432404,-362.46,9.578e-05,2]
[342421128,1731845432414,-433.3,9.578e-05,2]
[342421129,1731845432424,-362.46,9.578e-05,2]
[342421130,1731845432435,-433.3,9.578e-05,2]
[342421131,1731845432444,-433.3,9.578e-05,2]
[342421132,1731845432453,-433.3,9.578e-05,2]
[342421133,1731845432462,-398.31,9.578e-05,2]
[342421134,1731845432471,-8548.0,9.606e-05,2]
[342421135,1731845432481,-150.0,9.853e-05,2]
[342421136,1731845432491,-150.0,9.877e-05,2]
[342421137,1731845432501,-420.0,9.887e-05,2]
[342421138,1731845432510,-2814.665,9.899e-05,2]
[342421139,1731845432519,-3038.68,9.9e-05,2]
[342421140,1731845432528,-4768.93755767,9.9e-05,2]
[342421141,1731845432538,-500.0,9.92e-05,2]
[342421142,1731845432548,-174.662,9.939e-05,2]
[342421143,1731845432557,-1067.793,9.939e-05,2]
[342421144,1731845432566,-500.0,9.973e-05,2]
[342421145,1731845432576,-3485.70341686,9.997e-05,2]
[342421146,1731845432585,-380148.4068484,9.999e-05,2]
[342421147,1731845432594,-8533.18166123,9.999e-05,2]
[342421148,1731845432603,-1251.574,9.999e-05,2]
[342421149,1731845432612,-628.0,9.999e-05,2]
[342421150,1731845432622,-1571.61,9.999e-05,2]
[342421151,1731845432631,-1925.0,9.999e-05,2]
[342421152,1731845432640,-560.0,9.999e-05,2]
[342421153,1731845432649,-3746.0,9.999e-05,2]
[342421154,1731845432659,-814.0,9.999e-05,2]
[342421155,1731845432667,-1260.0,9.999e-05,2]
[342421156,1731845432678,-388.392,9.999e-05,2]
[342421157,1731845432688,-771.74,9.999e-05,2]
[342421158,1731845432698,-3363.40327416,9.999e-05,2]
[342421159,1731845432707,-536.65,9.999e-05,2]
[342421160,1731845432716,-3363.40327407,9.999e-05,2]
[342421161,1731845432726,-3363.40327407,9.999e-05,2]
[342421162,1731845432736,-3363.40327407,9.999e-05,2]
[342421163,1731845432745,-3363.40327407,9.999e-05,2]
[342421164,1731845432754,-3363.40327407,0.0001,2]
[342421165,1731845432763,-3363.40327407,0.0001,2]
[342421166,1731845432772,-3363.40327407,0.0001,2]
[342421167,1731845432782,-3363.40327407,0.0001,2]
[342421168,1731845432791,-3326631.23281533,0.0001,2]
[342421169,1731845432801,-11561.44572892,0.0001,2]
[342421170,1731845432810,-9625455.55655224,0.0001,2]
[342421171,1731845432822,-104427.757695,0.0001,2]
[342421172,1731845432837,-550.2330322,0.0001,2]
[342421173,1731845432849,-1108229.64893054,0.0001,2]
[342421174,1731845432863,-520.0,0.0001,2]
[342421175,1731845432885,-11449.87667109,0.0001,2]
[342421523,1731845438077,-500.0,9.973e-05,2]
[342421526,1731845438087,-63.70774733,0.0001,2]
[342421533,1731845438131,-345.1123749,0.0001,2]
[342421554,1731845438355,-1336.72165161,0.0001,2]
[342421563,1731845438449,-265.42652427,0.0001,2]
[342421710,1731845440021,-14575.092,0.0001,2]
[342421721,1731845440128,-867.74640596,0.0001,2]
[342421723,1731845440139,-1146.80056203,0.0001,2]
[342421725,1731845440151,-372.37,0.0001,2]
[342421849,1731845441645,-1023.25,0.0001,2]
[342421997,1731845443021,-261.52551038,0.0001,2]
[342422000,1731845443032,-4998.62378509,0.0001,2]
[342422005,1731845443075,-1476.66338,0.0001,2]
[342422007,1731845443086,-1310.61971439,0.0001,2]
[342422010,1731845443097,-2990.76423087,0.0001,2]
[342422020,1731845443183,-1498.92866,0.0001,2]
[342422022,1731845443194,-322.5100008,0.0001,2]
[342422039,1731845443342,-7074.0000001,0.0001,2]
[342422041,1731845443355,-28165.12139078,0.0001,2]
[342422083,1731845446019,-9145.83008129,0.0001,2]
[342422085,1731845446030,-726.764,0.0001,2]
[342422087,1731845446181,-1113.70970627,0.0001,2]
[342422088,1731845446263,-1494894.29242972,0.0001,2]
[342422089,1731845446283,-61662.15304618,0.0001,2]
[342422090,1731845446296,-31845.4559998,0.0001,2]
[342422091,1731845446315,-524.98442595,0.0001,2]
[342422092,1731845643146,150.0,8.219e-05,2]
[342422093,1731845743190,2586.39,8.219e-05,2]
[342422095,1731846304444,150.0,8.559e-05,2]
[342422096,1731846304468,102.18586773,8.559e-05,2]
[342422097,1731846343997,150.0,6.975e-05,2]
[342422098,1731846344025,144.8,6.975e-05,2]
[342422099,1731846344625,5.2,7.672e-05,2]
[342422100,1731846344648,150.0,7.672e-05,2]
[342422101,1731846344669,139.6,7.672e-05,2]
[342422102,1731846344739,10.4,8.37e-05,2]
[342422103,1731846344762,150.0,8.37e-05,2]
[342422104,1731846344783,134.4,8.37e-05,2]
[342422105,1731846356815,833.48094184,6.94e-05,2]
[342422107,1731846367964,2689.962818,8.595e-05,2]
[342422108,1731846379424,150.0,8.596e-05,2]
[342422109,1731846379446,150.0,8.596e-05,2]
[342422110,1731846379467,150.0,8.596e-05,2]
[342422111,1731846379489,150.0,8.596e-05,2]
[342422112,1731846379528,150.0,8.596e-05,2]
[342422113,1731846379555,150.0,8.596e-05,2]
[342422114,1731846379580,150.0,8.596e-05,2]
[342422115,1731846379603,150.0,8.596e-05,2]
[342422116,1731846379629,1214.37,8.596e-05,2]
[342422117,1731846386712,176.93,8.596e-05,2]
[342422118,1731846431502,203.25,8.219e-05,2]
[342422119,1731846460687,1045.61,8.465e-05,2]
[342422120,1731846468308,250.0,8.477e-05,2]
[342422121,1731846473232,150.0,8.219e-05,2]
[342422122,1731846473252,150.0,8.219e-05,2]
[342422123,1731846473273,150.0,8.219e-05,2]
[342422124,1731846473293,150.0,8.219e-05,2]
[342422125,1731846473315,150.0,8.219e-05,2]
[342422126,1731846473336,150.0,8.219e-05,2]
[342422127,1731846473357,150.0,8.219e-05,2]
[342422128,1731846473377,150.0,8.219e-05,2]
[342422129,1731846473397,150.0,8.219e-05,2]
[342422130,1731846473418,150.0,8.219e-05,2]
[342422131,1731846473442,2894.61,8.219e-05,2]
[342422132,1731846489531,150.0,8.512e-05,2]
[342422133,1731846489552,263.41413227,8.512e-05,2]
[342422134,1731846489578,366.86586773,8.512e-05,2]
[342422135,1731846500017,2788.7,8.512e-05,2]
[342422138,1731846557946,250.0,8.536e-05,2]
[342422142,1731846585330,164.68,8.555e-05,2]
[342422156,1731846602221,150.0,8.555e-05,2]
[342422157,1731846602404,150.0,8.555e-05,2]
[342422158,1731846602716,150.0,8.555e-05,2]
[342422159,1731846602909,150.0,8.555e-05,2]
[342422160,1731846603097,150.0,8.555e-05,2]
[342422161,1731846603384,150.0,8.555e-05,2]
[342422162,1731846603554,244.87551712,8.555e-05,2]
[342422163,1731846619622,1500.0,8.536e-05,2]
[342422185,1731846632510,-571.51368121,8.613e-05,2]
[342422186,1731846632526,-507.045472,8.613e-05,2]
[342422187,1731846634881,-726.56084679,8.613e-05,2]
[342422188,1731846634893,-200.0,8.628e-05,2]
[342422189,1731846634902,-2983.89,8.628e-05,2]
[342422190,1731846634912,-300.0,8.637e-05,2]
[342422191,1731846634921,-3302.68,8.638e-05,2]
[342422192,1731846634930,-371.73,8.664e-05,2]
[342422193,1731846634939,-254.42,8.672e-05,2]
[342422194,1731846634949,-764.27,8.688e-05,2]
[342422195,1731846634958,-3796.91,8.699e-05,2]
[342422196,1731846634969,-1000.0,8.723e-05,2]
[342422197,1731846634982,-1261.06,8.841e-05,2]
[342422198,1731846634991,-156.61,8.841e-05,2]
[342422200,1731846635001,-985.74,8.858e-05,2]
[342422202,1731846635010,-196.25,8.894e-05,2]
[342422204,1731846635019,-250.0,8.895e-05,2]
[342422206,1731846635029,-6176.22,8.963e-05,2]
[342422208,1731846635038,-150.0,8.999e-05,2]
[342422210,1731846635047,-42148.8428129,9e-05,2]
[342422211,1731846635056,-600.0,9e-05,3]
[342422214,1731846635066,-476.8,9.029e-05,2]
[342422216,1731846635075,-294.8,9.067e-05,2]
[342422218,1731846635085,-1200.0,9.1e-05,3]
[342422220,1731846635094,-1800.0,9.2e-05,3]
[342422221,1731846635104,-2400.0,9.3e-05,3]
[342422223,1731846635113,-592.91454494,9.4e-05,3]
[342422224,1731846635125,-2407.08545506,9.4e-05,3]
[342422225,1731846635134,-150.0,9.466e-05,2]
[342422226,1731846635144,-600.0,9.5e-05,3]
[342422227,1731846635153,-420.0,9.501e-05,2]
[342422228,1731846635163,-600.0,9.6e-05,3]
[342422229,1731846635173,-2000.0,9.676e-05,2]
[342422230,1731846635182,-900.0,9.676e-05,2]
[342422231,1731846635191,-600.0,9.7e-05,3]
[342422232,1731846635201,-294.8,9.765e-05,2]
[342422233,1731846635211,-2997.0,9.8e-05,2]
[342422234,1731846635221,-600.0,9.8e-05,3]
[342422235,1731846635231,-1000.0,9.813e-05,2]
[342422236,1731846635240,-150.0,9.854e-05,2]
[342422237,1731846635250,-631.0,9.854e-05,2]
[342422238,1731846635259,-255.0,9.899e-05,2]
[342422239,1731846635269,-7185.7901,9.9e-05,2]
[342422240,1731846635278,-5524.4581,9.9e-05,2]
[342422241,1731846635288,-950.0,9.9e-05,3]
[342422242,1731846635298,-500.0,9.92e-05,2]
[342422243,1731846635307,-500.0,9.973e-05,2]
[342422244,1731846635317,-164.68,9.98e-05,2]
[342422245,1731846635327,-669.63971235,9.997e-05,2]
[342422246,1731846635337,-854.234,9.998e-05,2]
[342422247,1731846635347,-1510.655,9.999e-05,2]
[342422248,1731846635357,-3746.0,9.999e-05,2]
[342422249,1731846635366,-1260.0,9.999e-05,2]
[342422250,1731846635377,-814.0,9.999e-05,2]
[342422251,1731846635387,-514.29,9.999e-05,2]
[342422252,1731846635396,-6166.86096149,0.0001,2]
[342422253,1731846635407,-93330.00000052,0.0001,2]
[342422254,1731846636240,323.2,8.536e-05,2]
[342422260,1731846638192,-323.2,9.603e-05,2]
[342422261,1731846638203,-628.0,9.854e-05,2]
[342422262,1731846638212,-3460.7,0.0001,2]
[342422264,1731846638251,-2276.70998514,0.0001,2]
[342422266,1731846638366,-70559.3213575,0.0001,2]
[342422278,1731846640182,-500.0,0.0001,2]
[342422279,1731846640194,-348.36,0.0001,2]
[342422280,1731846640206,-1402.08051998,0.0001,2]
[342422281,1731846640217,-349.46147171,0.0001,2]
[342422282,1731846640239,-6097.61059867,0.0001,2]
[342422283,1731846640466,-0.04786853,0.0001,2]
[342422284,1731846640483,-838.68893181,0.0001,2]
[342422292,1731846643147,-826.47387167,9.999e-05,2]
[342422295,1731846643258,-2736.11612833,9.999e-05,2]
[342422296,1731846643268,-1980.66548204,0.0001,2]
[342422297,1731846643371,-6886.85089255,0.0001,2]
[342422298,1731846643382,-3092.55935117,0.0001,2]
[342422305,1731846646175,-5231.2655235,0.0001,2]
[342422306,1731846646290,-9354.8427031,0.0001,2]
[342422307,1731846646301,-4028.00837242,0.0001,2]
[342422308,1731846646352,-131504.25287658,0.0001,2]
[342422309,1731846646362,-3381.73324562,0.0001,2]
[342422310,1731846646462,-10444.03647735,0.0001,2]
[342422311,1731846646471,-8106.52257817,0.0001,2]
[342422312,1731846646482,-7525.49094448,0.0001,2]
[342422315,1731846815046,-154.723,0.0002277,60]
[342422316,1731846815079,-501.12763986,0.00024,60]
[342422317,1731846815105,-500.0,0.00024,60]
[342422318,1731846815132,-501.79810238,0.00024,60]
[342422319,1731846815161,-500.0,0.00024,60]
[342422320,1731846815188,-502.25413195,0.00024,60]
[342422321,1731846815215,-480.33120209,0.00024,60]
[342422322,1731846815242,-500.15016817,0.00024,60]
[342422323,1731846815270,-500.0,0.00024,60]
[342422324,1731846815296,-500.0,0.00024,60]
[342422325,1731846815322,-500.0,0.00024,60]
[342422326,1731846815347,-500.0,0.00024,60]
[342422327,1731846815373,-598.58933983,0.00024,60]
[342422328,1731846815399,-500.0,0.00024,60]
[342422329,1731846815425,-500.0,0.00024,60]
[342422330,1731846815452,-500.0,0.00024,60]
[342422331,1731846815479,-500.0,0.00024,60]
[342422332,1731846815505,-504.65827542,0.00024,60]
[342422333,1731846815531,-500.0,0.00024,60]
[342422334,1731846815557,-502.88541176,0.00024,60]
[342422335,1731846815581,-500.0,0.00024,60]
[342422336,1731846815607,-500.0,0.00024,60]
[342422337,1731846815632,-502.84565263,0.00024,60]
[342422338,1731846815660,-500.0,0.00024,60]
[342422339,1731846815685,-500.0,0.00024,60]
[342422340,1731846815711,-500.0,0.00024,60]
[342422341,1731846815737,-507.73617257,0.00024,60]
[342422342,1731846815762,-500.0,0.00024,60]
[342422343,1731846815787,-425.7944221,0.00024,60]
[342422344,1731846815815,-500.0,0.00024,60]
[342422345,1731846815841,-500.0,0.00024,60]
[342422346,1731846815867,-500.0,0.00024,60]
[342422347,1731846815896,-500.0,0.00024,60]
[342422348,1731846815920,-502.9599897,0.00024,60]
[342422349,1731846815945,-500.0,0.00024,60]
[342422350,1731846815970,-500.0,0.00024,60]
[342422351,1731846815994,-502.16002237,0.00024,60]
[342422352,1731846816019,-500.58705181,0.00024,60]
[342422353,1731846816042,-500.0,0.00024,60]
[342422354,1731846816066,-500.0,0.00024,60]
[342422355,1731846816090,-500.0,0.00024,60]
[342422356,1731846816115,-500.0,0.00024,60]
[342422357,1731846816139,-500.0,0.00024,60]
[342422358,1731846816166,-500.0,0.00024,60]
[342422359,1731846816193,-500.0,0.00024,60]
[342422360,1731846816217,-500.0,0.00024,60]
[342422361,1731846816242,-500.0,0.00024,60]
[342422362,1731846816267,-500.0,0.00024,60]
[342422363,1731846816292,-500.0,0.00024,60]
[342422364,1731846816316,-500.0,0.00024,60]
[342422365,1731846816342,-500.0,0.00024,60]
[342422366,1731846816367,-500.0,0.00024,60]
[342422367,1731846816391,-500.0,0.00024,60]
[342422368,1731846816426,-500.0,0.00024,60]
[342422369,1731846816450,-500.0,0.00024,60]
[342422370,1731846816474,-500.75876121,0.00024,60]
[342422371,1731846816499,-500.0,0.00024,60]
[342422372,1731846816524,-500.0,0.00024,60]
[342422373,1731846816551,-500.0,0.00024,60]
[342422374,1731846816577,-500.0,0.00024,60]
[342422375,1731846816602,-500.0,0.00024,60]
[342422376,1731846816627,-500.0,0.00024,60]
[342422377,1731846816654,-592.53620626,0.00024,60]
[342422378,1731846816679,-500.0,0.00024,60]
[342422379,1731846816704,-500.0,0.00024,60]
[342422380,1731846816729,-500.0,0.00024,60]
[342422381,1731846816754,-500.85293204,0.00024,60]
[342422382,1731846816778,-500.0,0.00024,60]
[342422383,1731846816805,-500.0,0.00024,60]
[342422384,1731846816830,-500.0,0.00024,60]
[342422385,1731846816856,-500.0,0.00024,60]
[342422386,1731846816881,-500.0,0.00024,60]
[342422387,1731846816907,-500.0,0.00024,60]
[342422388,1731846816931,-500.0,0.00024,60]
[342422389,1731846816956,-500.0,0.00024,60]
[342422390,1731846816985,-365.87783561,0.00024,60]
[342422391,1731846817021,-500.0,0.00024,60]
[342422392,1731846817050,-500.0,0.00024,60]
[342422393,1731846817079,-500.0,0.00024,60]
[342422394,1731846817108,-500.0,0.00024,60]
[342422395,1731846817139,-500.0,0.00024,60]
[342422396,1731846817172,-500.0,0.00024,60]
[342422397,1731846817202,-500.0,0.00024,60]
[342422398,1731846817229,-500.0,0.00024,60]
[342422399,1731846817259,-500.0,0.00024,60]
[342422400,1731846817291,-424.54302359,0.00024,60]
[342422401,1731846817322,-500.0,0.00024,60]
[342422402,1731846817353,-500.0,0.00024,60]
[342422403,1731846817384,-500.0,0.00024,60]
[342422404,1731846817420,-500.0,0.00024,60]
[342422405,1731846817449,-500.0,0.00024,60]
[342422406,1731846817480,-409.67565806,0.00024,60]
[342422407,1731846817510,-500.0,0.00024,60]
[342422408,1731846817541,-500.0,0.00024,60]
[342422409,1731846817571,-500.0,0.00024,60]
[342422410,1731846817602,-500.0,0.00024,60]
[342422411,1731846817631,-500.0,0.00024,60]
[342422412,1731846817658,-500.0,0.00024,60]
[342422413,1731846817687,-500.0,0.00024,60]
[342422414,1731846817721,-500.0,0.00024,60]
[342422415,1731846817747,-500.0,0.00024,60]
[342422416,1731846817775,-500.0,0.00024,60]
[342422417,1731846817810,-500.0,0.00024,60]
[342422418,1731846817841,-500.0,0.00024,60]
[342422419,1731846817868,-500.0,0.00024,60]
[342422420,1731846817899,-500.0,0.00024,60]
[342422421,1731846817926,-500.0,0.00024,60]
[342422422,1731846817954,-500.0,0.00024,60]
[342422423,1731846817987,-504.81743174,0.00024,60]
[342422424,1731846818016,-500.0,0.00024,60]
[342422425,1731846818045,-500.0,0.00024,60]
[342422426,1731846818075,-500.0,0.00024,60]
[342422427,1731846818104,-500.0,0.00024,60]
[342422428,1731846818132,-500.0,0.00024,60]
[342422429,1731846818165,-500.0,0.00024,60]
[342422430,1731846818193,-500.0,0.00024,60]
[342422431,1731846818223,-500.0,0.00024,60]
[342422432,1731846818251,-500.0,0.00024,60]
[342422433,1731846818281,-500.0,0.00024,60]
[342422434,1731846818309,-500.0,0.00024,60]
[342422435,1731846818338,-500.0,0.00024,60]
[342422436,1731846818367,-500.0,0.00024,60]
[342422437,1731846818400,-500.0,0.00024,60]
[342422438,1731846818429,-501.53501363,0.00024,60]
[342422439,1731846818458,-500.0,0.00024,60]
[342422440,1731846818486,-414.19335601,0.00024,60]
[342422441,1731846818515,-500.0,0.00024,60]
[342422442,1731846818544,-500.0,0.00024,60]
[342422443,1731846818574,-500.0,0.00024,60]
[342422444,1731846818604,-500.0,0.00024,60]
[342422445,1731846818637,-500.0,0.00024,60]
[342422446,1731846818672,-500.0,0.00024,60]
[342422447,1731846818705,-500.0,0.00024,60]
[342422448,1731846818737,-500.0,0.00024,60]
[342422449,1731846818769,-500.0,0.00024,60]
[342422450,1731846818804,-500.0,0.00024,60]
[342422451,1731846818837,-500.0,0.00024,60]
[342422452,1731846818867,-500.0,0.00024,60]
[342422453,1731846818900,-500.0,0.00024,60]
[342422454,1731846818931,-500.0,0.00024,60]
[342422455,1731846818964,-221.59577159,0.00024,60]
[342422456,1731846818995,-500.0,0.00024,60]
[342422457,1731846819025,-500.0,0.00024,60]
[342422458,1731846819055,-500.0,0.00024,60]
[342422459,1731846819085,-500.0,0.00024,60]
[342422460,1731846819116,-500.0,0.00024,60]
[342422461,1731846819147,-500.0,0.00024,60]
[342422462,1731846819178,-500.0,0.00024,60]
[342422463,1731846819213,-500.0,0.00024,60]
[342422464,1731846819244,-500.0,0.00024,60]
[342422465,1731846819274,-500.0,0.00024,60]
[342422466,1731846819305,-500.0,0.00024,60]
[342422467,1731846819337,-500.0,0.00024,60]
[342422468,1731846819369,-500.0,0.00024,60]
[342422469,1731846819401,-564.33,0.00024,60]
[342422470,1731846819434,-500.0,0.00024,60]
[342422471,1731846819464,-500.0,0.00024,60]
[342422472,1731846819493,-564.33,0.00024,60]
[342422473,1731846819522,-155.78416184,0.00024,60]
[342422474,1731846819551,-500.0,0.00024,60]
[342422475,1731846819582,-564.33,0.00024,60]
[342422476,1731846819616,-500.0,0.00024,60]
[342422477,1731846819645,-564.33,0.00024,60]
[342422478,1731846819676,-564.33,0.00024,60]
[342422479,1731846819705,-500.0,0.00024,60]
[342422480,1731846819734,-564.33,0.00024,60]
[342422481,1731846819763,-500.0,0.00024,60]
[342422482,1731846819795,-564.33,0.00024,60]
[342422483,1731846819825,-500.0,0.00024,60]
[342422484,1731846819859,-564.33,0.00024,60]
[342422485,1731846820508,-500.0,0.00024,60]
[342422486,1731846820539,-564.33,0.00024,60]
[342422487,1731846820570,-500.0,0.00024,60]
[342422488,1731846820600,-500.0,0.00024,60]
[342422489,1731846820627,-564.33,0.00024,60]
[342422490,1731846820655,-500.0,0.00024,60]
[342422491,1731846820684,-500.0,0.00024,60]
[342422492,1731846820712,-564.33,0.00024,60]
[342422493,1731846820741,-500.0,0.00024,60]
[342422494,1731846820772,-500.0,0.00024,60]
[342422495,1731846820803,-564.33,0.00024,60]
[342422496,1731846820830,-500.0,0.00024,60]
[342422497,1731846820857,-500.0,0.00024,60]
[342422498,1731846820885,-564.33,0.00024,60]
[342422499,1731846820915,-178.77067874,0.00024,60]
[342422500,1731846820944,-500.0,0.00024,60]
[342422501,1731846820973,-564.33,0.00024,60]
[342422502,1731846821002,-564.33,0.00024,60]
[342422503,1731846821030,-500.0,0.00024,60]
[342422504,1731846821057,-564.33,0.00024,60]
[342422505,1731846821085,-500.0,0.00024,60]
[342422506,1731846821113,-564.33,0.00024,60]
[342422507,1731846821140,-500.0,0.00024,60]
[342422508,1731846821169,-564.33,0.00024,60]
[342422509,1731846821197,-500.0,0.00024,60]
[342422510,1731846821225,-564.33,0.00024,60]
[342422511,1731846821254,-621.68020545,0.00024,60]
[342422512,1731846821282,-500.0,0.00024,60]
[342422513,1731846821309,-500.0,0.00024,60]
[342422514,1731846821337,-500.0,0.00024,60]
[342422515,1731846821365,-500.0,0.00024,60]
[342422516,1731846821393,-500.0,0.00024,60]
[342422517,1731846821424,-564.33,0.00024,60]
[342422518,1731846821451,-500.0,0.00024,60]
[342422519,1731846821479,-500.0,0.00024,60]
[342422520,1731846821507,-564.33,0.00024,60]
[342422521,1731846821535,-500.0,0.00024,60]
[342422522,1731846821563,-500.0,0.00024,60]
[342422523,1731846821591,-564.33,0.00024,60]
[342422524,1731846821618,-500.0,0.00024,60]
[342422525,1731846821645,-500.0,0.00024,60]
[342422526,1731846821675,-564.33,0.00024,60]
[342422527,1731846821702,-500.0,0.00024,60]
[342422528,1731846821729,-500.0,0.00024,60]
[342422529,1731846821757,-564.45845373,0.00024,60]
[342422530,1731846821784,-500.0,0.00024,60]
[342422531,1731846821817,-623.25351623,0.00024,60]
[342422532,1731846821845,-500.0,0.00024,60]